fUSD/lending_fUSD_20251007
["ID","MTS","AMOUNT","RATE_DAILY","PERIOD"]
[389689845,1759795836530,-500.0,0.00028888,7]
[389689846,1759795836539,-500.73499069,0.00028888,7]
[389689847,1759795836549,-161.36057265,0.00028888,7]
[389689848,1759795836558,-500.0,0.00028888,7]
[389689849,1759795836567,-1445.1,0.00028888,7]
[389689850,1759795836577,-500.0,0.00028888,7]
[389689851,1759795836586,-1000.0,0.00028888,30]
[389689852,1759795836596,-689.73,0.00028888,7]
[389689853,1759795836606,-706.41,0.00028888,7]
[389689854,1759795836623,-500.92223562,0.00028888,7]
[389689855,1759795836636,-501.59361149,0.00028888,7]
[389689856,1759795836647,-500.0,0.00028888,7]
[389689857,1759795836657,-529.35,0.00028888,7]
[389689858,1759795836667,-1476.99088829,0.00028888,2]
[389689859,1759795836677,-500.0,0.00028888,7]
[389689860,1759795836687,-500.0,0.00028888,7]
[389689861,1759795836697,-500.0,0.00028888,7]
[389689862,1759795836707,-500.0,0.00028888,7]
[389689863,1759795836716,-500.0,0.00028888,7]
[389689864,1759795836726,-500.0,0.00028888,7]
[389689865,1759795836736,-500.0,0.00028888,7]
[389689866,1759795836747,-755.13,0.00028888,7]
[389689867,1759795836757,-1112.21,0.00028888,7]
[389689868,1759795836767,-1261.3,0.00028888,7]
[389689869,1759795836778,-1262.74,0.00028888,7]
[389689870,1759795836788,-2953.92,0.00028888,7]
[389689871,1759795836798,-500.0,0.00028888,7]
[389689872,1759795836808,-500.0,0.00028888,7]
[389689873,1759795836818,-500.0,0.00028888,7]
[389689874,1759795836829,-500.0,0.00028888,7]
[389689875,1759795836839,-500.0,0.00028888,7]
[389689876,1759795836848,-655.05,0.00028888,7]
[389689877,1759795836858,-500.0,0.00028888,7]
[389689878,1759795836868,-500.0,0.00028888,7]
[389689879,1759795836879,-502.51207086,0.00028888,7]
[389689880,1759795836889,-810.96,0.00028888,7]
[389689881,1759795836899,-5000.0,0.00028889,2]
[389689882,1759795836908,-304.2757,0.00028899,2]
[389689883,1759795836917,-400.0,0.000289,10]
[389689884,1759795836926,-1391.0,0.00028927,2]
[389689885,1759795836936,-152.0,0.00028927,5]
[389689886,1759795836946,-164.37413352,0.00028935,2]
[389689887,1759795836957,-23469.8927013,0.00028949,2]
[389689888,1759795836966,-183.75589595,0.00028954,2]
[389689889,1759795836976,-183.75589595,0.00028954,2]
[389689890,1759795836986,-9526.57,0.00028958,7]
[389689891,1759795836995,-1358.13,0.00028958,7]
[389689892,1759795837005,-150.0,0.00028959,7]
[389689893,1759795837018,-150.0,0.00028959,7]
[389689894,1759795837027,-150.0,0.00028959,7]
[389689895,1759795837037,-150.0,0.00028959,7]
[389689896,1759795837047,-150.0,0.00028959,7]
[389689897,1759795837057,-150.0,0.00028959,7]
[389689898,1759795837067,-150.0,0.00028959,7]
[389689899,1759795837076,-150.0,0.00028959,7]
[389689900,1759795837086,-150.0,0.00028959,7]
[389689901,1759795837096,-150.0,0.00028959,7]
[389689902,1759795837106,-150.0,0.00028959,7]
[389689903,1759795837116,-150.0,0.00028959,7]
[389689904,1759795837127,-150.00000001,0.00028959,7]
[389689905,1759795837137,-477.64381501,0.00028959,2]
[389689906,1759795837146,-6467.0,0.00028959,2]
[389689907,1759795837156,-36091.0,0.00028959,2]
[389689908,1759795837165,-150.0,0.00028959,2]
[389689909,1759795837175,-150.0,0.00028959,2]
[389689910,1759795837184,-150.0,0.00028959,2]
[389689911,1759795837194,-23469.8927013,0.00028963,2]
[389689912,1759795837204,-551.9,0.00028963,7]
[389689913,1759795837213,-551.9,0.00028963,7]
[389689914,1759795837223,-551.9,0.00028963,7]
[389689915,1759795837236,-551.9,0.00028963,7]
[389689916,1759795837245,-551.9,0.00028963,7]
[389689917,1759795837255,-551.9,0.00028963,7]
[389689918,1759795837264,-551.9,0.00028963,7]
[389689919,1759795837274,-551.9,0.00028963,7]
[389689920,1759795837285,-551.9,0.00028963,7]
[389689921,1759795837297,-551.9,0.00028963,7]
[389689922,1759795837307,-551.9,0.00028963,7]
[389689923,1759795837318,-551.9,0.00028963,7]
[389689924,1759795837328,-551.9,0.00028963,7]
[389689925,1759795837338,-1777.2,0.00028963,7]
[389689926,1759795837348,-1777.2,0.00028963,7]
[389689927,1759795837358,-1777.2,0.00028963,7]
[389689928,1759795837369,-1777.2,0.00028963,7]
[389689929,1759795837379,-1777.2,0.00028963,7]
[389689930,1759795837389,-1777.2,0.00028963,7]
[389689931,1759795837398,-1777.2,0.00028963,7]
[389689932,1759795837408,-1777.2,0.00028963,7]
[389689933,1759795837418,-1777.2,0.00028963,7]
[389689934,1759795837428,-1777.2,0.00028963,7]
[389689935,1759795837438,-1777.2,0.00028963,7]
[389689936,1759795837448,-1777.2,0.00028963,7]
[389689937,1759795837458,-1777.2,0.00028963,7]
[389689938,1759795837471,-1600.93,0.00028963,2]
[389689939,1759795837481,-1600.93,0.00028963,2]
[389689940,1759795837491,-1600.93,0.00028963,2]
[389689941,1759795837501,-1600.93,0.00028963,2]
[389689942,1759795837511,-1600.93,0.00028963,2]
[389689943,1759795837520,-1600.93,0.00028963,2]
[389689945,1759795837530,-1600.93,0.00028963,2]
[389689946,1759795837540,-1600.93,0.00028963,2]
[389689947,1759795837549,-1600.93,0.00028963,2]
[389689948,1759795837559,-1600.93,0.00028963,2]
[389689949,1759795837568,-1600.93,0.00028963,2]
[389689950,1759795837578,-1600.93,0.00028963,2]
[389689951,1759795837588,-1600.93,0.00028963,2]
[389689952,1759795837598,-500.0,0.00028963,7]
[389689953,1759795837608,-500.0,0.00028963,7]
[389689954,1759795837618,-500.0,0.00028963,7]
[389689955,1759795837627,-500.0,0.00028963,7]
[389689956,1759795837637,-500.0,0.00028963,7]
[389689957,1759795837647,-500.0,0.00028963,7]
[389689958,1759795837657,-500.0,0.00028963,7]
[389689959,1759795837667,-151.0,0.00028964,30]
[389689960,1759795837676,-151.0,0.00028964,30]
[389689961,1759795837686,-151.0,0.00028964,30]
[389689962,1759795837699,-151.0,0.00028964,30]
[389689963,1759795837709,-882.998854,0.00028964,30]
[389689964,1759795837718,-151.0,0.00028964,30]
[389689965,1759795837728,-151.0,0.00028964,30]
[389689966,1759795837738,-162.009456,0.00028964,30]
[389689967,1759795837747,-151.0,0.00028964,30]
[389689968,1759795837757,-882.998854,0.00028964,30]
[389689969,1759795837767,-151.0,0.00028964,30]
[389689970,1759795837776,-151.0,0.00028964,30]
[389689971,1759795837785,-162.009456,0.00028964,30]
[389689972,1759795837795,-151.0,0.00028964,30]
[389689973,1759795837805,-882.998854,0.00028964,30]
[389689974,1759795837815,-151.0,0.00028964,30]
[389689975,1759795837825,-162.009456,0.00028964,30]
[389689976,1759795837834,-151.0,0.00028964,30]
[389689977,1759795837844,-882.998854,0.00028964,30]
[389689978,1759795837854,-151.0,0.00028964,30]
[389689979,1759795837863,-162.009456,0.00028964,30]
[389689980,1759795837875,-151.0,0.00028964,30]
[389689981,1759795837884,-224.573319,0.00028964,30]
[389689982,1759795837895,-275.198546,0.00028964,30]
[389689983,1759795837905,-164.858989,0.00028964,30]
[389689984,1759795837918,-151.0,0.00028964,30]
[389689985,1759795837927,-151.0,0.00028964,30]
[389689986,1759795837936,-224.573319,0.00028964,30]
[389689987,1759795837946,-275.198546,0.00028964,30]
[389689988,1759795837956,-151.0,0.00028964,30]
[389689989,1759795837966,-164.858989,0.00028964,30]
[389689990,1759795837975,-151.0,0.00028964,30]
[389689991,1759795837985,-151.0,0.00028964,30]
[389689992,1759795837995,-224.573319,0.00028964,30]
[389689993,1759795838004,-498.833504,0.00028964,30]
[389689994,1759795838014,-275.198546,0.00028964,30]
[389689995,1759795838023,-164.858989,0.00028964,30]
[389689996,1759795838033,-151.0,0.00028964,30]
[389689997,1759795838043,-224.573319,0.00028964,30]
[389689998,1759795838052,-275.198546,0.00028964,30]
[389689999,1759795838062,-498.833504,0.00028964,30]
[389690000,1759795838072,-151.0,0.00028964,30]
[389690001,1759795838083,-164.858989,0.00028964,30]
[389690002,1759795838092,-498.833504,0.00028964,30]
[389690003,1759795838101,-498.833504,0.00028964,30]
[389690004,1759795838111,-151.0,0.00028964,30]
[389690005,1759795838120,-494.886209,0.00028964,30]
[389690006,1759795838129,-494.886209,0.00028964,30]
[389690007,1759795838138,-494.886209,0.00028964,30]
[389690008,1759795838148,-494.886209,0.00028964,30]
[389690010,1759795838158,-151.0,0.00028964,30]
[389690023,1759795838270,-151.0,0.00028964,30]
[389690025,1759795838280,-151.0,0.00028964,30]
[389690026,1759795838295,-151.0,0.00028964,30]
[389690027,1759795838304,-151.0,0.00028964,30]
[389690028,1759795838313,-151.0,0.00028964,30]
[389690029,1759795838322,-151.0,0.00028964,30]
[389690030,1759795838333,-151.0,0.00028964,30]
[389690031,1759795838342,-151.0,0.00028964,30]
[389690032,1759795838351,-3692.814096,0.00028964,30]
[389690033,1759795838360,-420.838148,0.00028964,30]
[389690034,1759795838370,-3692.814096,0.00028964,30]
[389690035,1759795838380,-420.838148,0.00028964,30]
[389690036,1759795838390,-151.0,0.00028964,30]
[389690037,1759795838399,-151.385872,0.00028964,30]
[389690038,1759795838408,-3692.814096,0.00028964,30]
[389690039,1759795838417,-211.707063,0.00028964,15]
[389690040,1759795838426,-420.838148,0.00028964,30]
[389690041,1759795838435,-151.0,0.00028964,30]
[389690042,1759795838444,-151.0,0.00028964,30]
[389690043,1759795838453,-3692.814096,0.00028964,30]
[389690044,1759795838462,-151.0,0.00028964,30]
[389690045,1759795838471,-211.707063,0.00028964,15]
[389690046,1759795838480,-420.838148,0.00028964,30]
[389690047,1759795838489,-151.0,0.00028964,30]
[389690048,1759795838498,-151.0,0.00028964,30]
[389690049,1759795838508,-177137.77054837,0.00028964,7]
[389690050,1759795838527,-4472.61728148,0.00028964,7]
[389690051,1759795838538,-18664.84856409,0.00028964,7]
[389690052,1759795838684,-217.58038197,0.0002651,2]
[389690053,1759795839229,-136.70961803,0.0002651,2]
[389690054,1759795839238,-918.892,0.00028852,2]
[389690055,1759795839247,-500.0,0.00028963,7]
[389690056,1759795839256,-500.0,0.00028963,7]
[389690057,1759795839266,-647.61321991,0.00028963,7]
[389690058,1759795839275,-211.707063,0.00028964,15]
[389690059,1759795839285,-151.0,0.00028964,30]
[389690060,1759795839299,-211.707063,0.00028964,15]
[389690061,1759795839308,-220.198397,0.00028964,30]
[389690062,1759795839317,-3015.83824861,0.00028964,7]
[389690063,1759795839329,-281.783442,0.00028964,7]
[389690064,1759795839341,-87663.04958757,0.00028964,7]
[389690065,1759795839353,-3600.0,0.00028964,7]
[389690066,1759795839364,-2311.16,0.00028964,7]
[389690067,1759795839377,-6661.54687367,0.00028964,7]
[389690068,1759795839387,-720.245,0.00028964,7]
[389690069,1759795839402,-2737.53953495,0.00028964,7]
[389690070,1759795839413,-706.14,0.00028964,7]
[389690071,1759795839425,-1631.04967947,0.00028964,7]
[389690072,1759795839435,-12957.20663294,0.00028964,7]
[389690073,1759795839454,-936.99856272,0.00028964,7]
[389690074,1759795839465,-505.69609867,0.00028964,7]
[389690075,1759795839478,-1822.82480381,0.00028964,7]
[389690076,1759795839488,-1105.96946261,0.00028964,7]
[389690089,1759795839811,-576.62497869,0.00028767,7]
[389690092,1759795839820,-19621.46390824,0.00028964,7]
[389690095,1759795839834,-93635.31702741,0.00028964,7]
[389690098,1759795839845,-362.00749824,0.00028964,7]
[389690103,1759795839855,-881.83769262,0.00028964,7]
[389690106,1759795839866,-281.89059997,0.00028964,7]
[389690109,1759795839880,-853.86922575,0.00028964,7]
[389690120,1759795839921,-58305.05054763,0.00028964,7]
[389690157,1759795840594,-1.1e-07,0.00028964,7]
[389690158,1759795840864,-315716.16557391,0.00028964,7]
[389690159,1759795840875,-500.0,0.00028964,7]
[389690160,1759795840887,-50748.71290854,0.00028964,7]
[389690162,1759795842831,-150.0,0.00025946,2]
[389690163,1759795842841,-500.0,0.00028799,7]
[389690164,1759795842851,-300.0,0.00028952,7]
[389690165,1759795842860,-84.46698492,0.00028964,30]
[389690166,1759795843092,-66.53301508,0.00028964,30]
[389690167,1759795843102,-151.0,0.00028964,30]
[389690168,1759795843112,-423.46698492,0.00028964,7]
[389690169,1759795843123,-608.052521,0.00028964,7]
[389690170,1759795843134,-337.88,0.00028964,7]
[389690175,1759795845657,-184.23686563,0.00028717,2]
[389690176,1759795845668,-480.65612703,0.00028888,7]
[389690177,1759795845880,-19.34387297,0.00028888,7]
[389690178,1759795845890,-500.0,0.00028888,7]
[389690179,1759795845900,-151.0,0.00028964,30]
[389690180,1759795845910,-230.798784,0.00028964,30]
[389690181,1759795845919,-1590.32463111,0.00028964,7]
[389690182,1759795846095,-5861.61175261,0.00028964,7]
[389690260,1759795847008,-151.0,0.00028974,30]
[389690262,1759795847035,-25.34078998,0.00028974,30]
[389690311,1759795849737,-151.0,0.00028799,7]
[389690312,1759795863091,-234.04255908,0.00028767,7]
[389690313,1759795877912,-201.50406023,0.00028767,7]
[389690314,1759795892370,-215.29500837,0.00028775,120]
[389690315,1759795911119,-64.45338069,0.00028767,7]
[389690316,1759795911145,-151.65566766,0.00028767,7]
[389690317,1759795923117,-159.00694207,0.00028767,7]
[389690318,1759795939109,-269.25783763,0.00028767,7]
[389690319,1759795956623,-180.48628705,0.00027964,2]
[389690320,1759795969597,-195.02282886,0.00028767,7]
[389690321,1759795983250,-162.40280541,0.00028767,7]
[389690322,1759795998475,-227.101697,0.00028767,7]
[389690323,1759796014871,-453.58222137,0.00028767,7]
[389690324,1759796014895,-25.02353876,0.00028767,7]
[389690325,1759796028738,-182.99285035,0.00027823,2]
[389690327,1759796039390,742.17,0.00015,2]
[389690328,1759796044964,-273.28220833,0.00028767,7]
[389690329,1759796060684,-162.24680519,0.00028767,7]
[389690330,1759796072752,-227.3112314,0.00028767,7]
[389690331,1759796092776,-187.15453479,0.00028767,7]
[389690332,1759796103733,-261.00631397,0.00027684,2]
[389690333,1759796125954,-150.0,0.00027684,2]
[389690334,1759796125978,-68.57309522,0.00027686,2]
[389690335,1759796136040,-178.28199449,0.00028767,7]
[389690336,1759796148141,-224.3689616,0.00027545,2]
[389690337,1759796150163,-151.0,0.00027545,2]
[389690338,1759796167410,-152.0,0.00028767,7]
[389690339,1759796183098,-75.6076934,0.00027545,2]
[389690340,1759796183126,-370.68887098,0.00027655,2]
[389690341,1759796183151,-52.74437401,0.00027662,2]
[389690342,1759796192259,-172.27290784,0.00027555,2]
[389690343,1759796193957,-151.0,0.00027555,2]
[389690344,1759796213765,-309.94281807,0.00028767,7]
[389690345,1759796227995,-151.23,0.00028767,7]
[389690346,1759796239258,-295.09126818,0.00028767,7]
[389690347,1759796253938,-163.49,0.00028767,7]
[389690348,1759796270413,-192.6424618,0.00028767,7]
[389690349,1759796283287,-150.0,0.00025692,2]
[389690350,1759796283345,-118.99663447,0.00027571,2]
[389690351,1759796286890,-151.0,0.00027574,2]
[389690352,1759796298700,-170.1854733,0.00026631,120]
[389690353,1759796314156,-271.86714267,0.00026631,120]
[389690354,1759796332037,-343.54486597,0.00026631,120]
[389690355,1759796344650,-287.11742733,0.00026631,120]
[389690356,1759796358284,-153.01824498,0.00026631,120]
[389690357,1759796375591,-238.295303,0.00026631,120]
[389690359,1759796386462,556.75,0.00013699,2]
[389690360,1759796387704,-237.3112314,0.00020187,2]
[389690361,1759796406303,-275.55577799,0.00020187,2]
[389690362,1759796417963,-155.0,0.00026631,120]
[389690363,1759796435235,-218.09927597,0.00026631,120]
[389690364,1759796450138,-228.13285733,0.00026631,120]
[389690365,1759796463550,-43.88299061,0.00020187,2]
[389690366,1759796463597,-150.0,0.00025687,2]
[389690367,1759796463644,-62.77218306,0.0002653,2]
[389690368,1759796479138,-272.898303,0.00026631,120]
[389690369,1759796494924,-458.33354025,0.00022206,2]
[389690370,1759796508989,-161.84110645,0.00026631,120]
[389690371,1759796509046,-192.62394036,0.000272,120]
[389690372,1759796523566,-154.83608158,0.00022206,2]
[389690373,1759796537633,-242.24274418,0.00022206,2]
[389690374,1759796553583,-151.93182043,0.000272,120]
[389690375,1759796571865,-137.21550296,0.00022206,2]
[389690376,1759796571915,-28.23232456,0.00024427,2]
[389690377,1759796572946,-159.91277848,0.00024427,2]
[389690378,1759796584923,-304.5007034,0.000272,120]
[389690379,1759796602748,-163.32891626,0.000272,120]
[389690380,1759796616147,-200.20511708,0.000272,120]
[389690381,1759796632320,-207.41961803,0.000272,120]
[389690382,1759796643563,-218.98916537,0.00024427,2]
[389690383,1759796707922,1853351.53139653,0.00015,2]
[389690384,1759796726135,-255.52284283,0.0002,2]
[389690385,1759796742093,-275.74545308,0.0002,2]
[389690386,1759796762759,-159.56820804,0.0002,2]
[389690387,1759796764222,-151.0,0.0002,2]
[389690394,1759796818771,-247.20210362,0.000162,5]
[389690395,1759796824010,-254.15193944,0.000162,5]
[389690396,1759796838105,-1639.23759676,0.000162,5]
[389690397,1759796844229,-305.94033931,0.000162,5]
[389690398,1759796844903,-195.0,0.000162,5]
[389690399,1759796857191,-172.77423131,0.000162,5]
[389690400,1759796860008,-260.86889862,0.000162,5]
[389690401,1759796867120,-195.0,0.000162,5]
[389690402,1759796867835,-298.09956373,0.000162,5]
[389690403,1759796874656,-300.0,0.000162,5]
[389690404,1759796881779,-1200.0,0.000162,5]
[389690405,1759796882528,-345.0,0.000162,5]
[389690406,1759796889362,-415.73734453,0.000162,5]
[389690407,1759796896533,-370.68887098,0.000162,5]
[389690408,1759796903719,-261.71529616,0.000162,5]
[389690409,1759796904351,-411.33404965,0.000162,5]
[389690411,1759796911388,-1766.2789445,0.000162,5]
[389690412,1759796919206,-486.65865321,0.000162,5]
[389690413,1759796919316,-556.69216818,0.000162,5]
[389690414,1759796919325,-195.0,0.00016317,2]
[389690415,1759796919335,-291.65865321,0.00016434,2]
[389690416,1759796919979,-200.4869703,0.00016434,2]
[389690417,1759796926705,-261.71529616,0.00016434,2]
[389690418,1759796929321,-173.26664014,0.00016434,2]
[389690419,1759796934272,-21.87244019,0.00016434,2]
[389690420,1759796934292,-21.87244019,0.00016435,2]
[389690421,1759796934304,-164.53034886,0.00016435,2]
[389690422,1759796942137,-173.02,0.00016434,2]
[389690423,1759796942542,-126.98,0.00016434,2]
[389690424,1759796942564,-94.34064895,0.00016435,2]
[389690425,1759796949229,-169.9905254,0.00016435,2]
[389690426,1759796955130,-422.98945758,0.00016435,2]
[389690427,1759796956405,-300.0,0.00016435,2]
[389690428,1759796972607,-270.88063502,0.00016435,2]
[389690431,1759796988074,-273.11444671,0.00016424,2]
[389690432,1759797003267,-142.62289782,0.00016424,2]
[389690433,1759797003290,-17.02513228,0.00016434,2]
[389690434,1759797004561,-151.0,0.00016434,2]
[389690435,1759797022705,-278.70092365,0.00016429,2]
[389690441,1759797031950,-177.40634083,0.00016429,2]
[389690444,1759797031959,-131.97486772,0.00016434,2]
[389690446,1759797031970,-493.69421201,0.00016434,2]
[389690447,1759797032023,-706.30578799,0.00016434,2]
[389690448,1759797032032,-300.0,0.00016434,2]
[389690449,1759797032041,-3664.30414634,0.00016435,2]
[389690450,1759797032113,-10344.44829532,0.00016435,2]
[389690451,1759797032122,-218.04802037,0.0001772,2]
[389690452,1759797032131,-300.0,0.0001782,2]
[389690453,1759797032141,-2500.0,0.0001782,2]
[389690454,1759797032150,-378.56774552,0.0001782,2]
[389690455,1759797032161,-195.0,0.0001782,2]
[389690456,1759797032170,-1392.0284288,0.00017846,2]
[389690457,1759797032180,-420.0,0.0001796,2]
[389690458,1759797032189,-2439.13642135,0.00018,2]
[389690459,1759797032198,-1680.0,0.0001805,2]
[389690460,1759797032207,-2157.89322514,0.00018066,2]
[389690461,1759797032221,-342.10677486,0.00018066,2]
[389690462,1759797032231,-195.0,0.00018072,2]
[389690463,1759797032240,-2000.0,0.00018077,2]
[389690464,1759797032249,-4564.2,0.000185,2]
[389690465,1759797032259,-587.0,0.00019628,2]
[389690466,1759797032268,-2351.0,0.00019824,2]
[389690467,1759797032277,-273.71079543,0.000199,2]
[389690468,1759797032287,-628.0,0.00019999,2]
[389690469,1759797032296,-5123.12343417,0.0002,2]
[389690470,1759797032305,-9150.69038876,0.0002,2]
[389690471,1759797032314,-1392.0284288,0.00020083,2]
[389690472,1759797032324,-637.54,0.00021145,2]
[389690473,1759797032333,-253.0,0.0002145,2]
[389690474,1759797032343,-361.0,0.00021773,2]
[389690475,1759797032352,-250.0,0.00022,2]
[389690476,1759797032361,-1392.0284288,0.00022321,2]
[389690477,1759797032370,-152.0,0.00022387,2]
[389690478,1759797032379,-637.54,0.00023788,2]
[389690479,1759797032388,-1348.41,0.00023827,30]
[389690481,1759797032397,-1392.0284288,0.00024558,2]
[389690483,1759797032406,-160.84,0.00024658,2]
[389690485,1759797032416,-218.04802036,0.00024799,2]
[389690487,1759797032425,-2852.1750851,0.0002489,2]
[389690489,1759797032434,-150.19972495,0.00024899,2]
[389690491,1759797032444,-150.99,0.000249,2]
[389690493,1759797032453,-177.07361613,0.000249,2]
[389690495,1759797032463,-346.08114639,0.00024973,2]
[389690497,1759797032472,-500.0,0.00024973,2]
[389690499,1759797032480,-500.0,0.00024973,2]
[389690501,1759797032489,-500.0,0.00024973,2]
[389690503,1759797032499,-501.3878239,0.00024973,2]
[389690504,1759797032507,-305.19,0.0002498,2]
[389690505,1759797032516,-1685.05,0.0002498,2]
[389690506,1759797032527,-150.99,0.0002498,2]
[389690507,1759797032535,-713.03,0.0002498,2]
[389690508,1759797032544,-493.43686711,0.0002498,2]
[389690509,1759797032556,-506.55313289,0.0002498,2]
[389690510,1759797032565,-22.72827049,0.0002499,2]
[389690511,1759797032584,-396.70284814,0.0002499,2]
[389690512,1759797032595,-919.15668812,0.0002499,2]
[389690513,1759797032620,-23047.46840003,0.0002499,2]
[389690514,1759797032635,-54022.84270135,0.0002499,2]
[389690515,1759797037805,-2248.77088453,0.0002499,2]
[389690516,1759797037817,-1285.02,0.0002499,2]
[389690517,1759797037914,-254.2596813,0.0002499,2]
[389690518,1759797037971,-294.75802627,0.0002499,2]
[389690519,1759797038026,-1226.2476,0.0002499,2]
[389690703,1759797039939,-156.75106969,0.00024865,20]
[389690705,1759797039948,-267.35622254,0.0002499,2]
[389690708,1759797039961,-783.76261542,0.0002499,2]
[389690768,1759797040746,-1.1e-07,0.0002499,2]
[389690778,1759797040834,-122642.5681857,0.0002499,2]
[389690780,1759797040843,-146041.44883214,0.0002499,2]
[389690783,1759797040861,-788.50317115,0.0002499,2]
[389690811,1759797041116,-642.0,0.0002499,2]
[389690813,1759797041127,-67489.87239471,0.0002499,2]
[389690816,1759797041137,-183.75589597,0.0002499,2]
[389690817,1759797041147,-232.15138453,0.00024999,2]
[389690819,1759797041156,-500.0,0.00024999,2]
[389690821,1759797041173,-537.43020229,0.00024999,2]
[389690823,1759797041182,-170.1854733,0.00024999,2]
[389690826,1759797041191,-500.0,0.00024999,2]
[389690828,1759797041200,-500.0,0.00024999,2]
[389690830,1759797041209,-500.0,0.00024999,2]
[389690832,1759797041219,-500.0,0.00024999,2]
[389690834,1759797041228,-500.0,0.00024999,2]
[389690836,1759797041237,-500.0,0.00024999,2]
[389690838,1759797041246,-500.0,0.00024999,2]
[389690840,1759797041255,-500.0,0.00024999,2]
[389690842,1759797041264,-500.0,0.00024999,2]
[389690844,1759797041273,-500.0,0.00024999,2]
[389690846,1759797041282,-500.0,0.00024999,2]
[389690848,1759797041293,-500.0,0.00024999,2]
[389690850,1759797041301,-500.0,0.00024999,2]
[389690852,1759797041310,-500.0,0.00024999,2]
[389690854,1759797041320,-500.0,0.00024999,2]
[389690856,1759797041329,-500.0,0.00024999,2]
[389690858,1759797041339,-500.0,0.00024999,2]
[389690860,1759797041348,-500.0,0.00024999,2]
[389690862,1759797041357,-500.0,0.00024999,2]
[389690864,1759797041366,-500.0,0.00024999,2]
[389690866,1759797041375,-500.0,0.00024999,2]
[389690868,1759797041384,-500.0,0.00024999,2]
[389690870,1759797041393,-500.0,0.00024999,2]
[389690872,1759797041402,-389.86197148,0.00024999,2]
[389690874,1759797041411,-500.0,0.00024999,2]
[389690876,1759797041420,-500.0,0.00024999,2]
[389690878,1759797041429,-500.0,0.00024999,2]
[389690880,1759797041438,-500.0,0.00024999,2]
[389690882,1759797041451,-500.0,0.00024999,2]
[389690884,1759797041461,-500.0,0.00024999,2]
[389690886,1759797041470,-500.0,0.00024999,2]
[389690888,1759797041479,-500.0,0.00024999,2]
[389690890,1759797041489,-500.0,0.00024999,2]
[389690892,1759797041498,-500.0,0.00024999,2]
[389690894,1759797041507,-500.0,0.00024999,2]
[389690896,1759797041517,-500.0,0.00024999,2]
[389690898,1759797041529,-500.0,0.00024999,2]
[389690900,1759797041544,-500.0,0.00024999,2]
[389690902,1759797041553,-500.0,0.00024999,2]
[389690904,1759797041563,-500.0,0.00024999,2]
[389690906,1759797041573,-500.0,0.00024999,2]
[389690908,1759797041583,-500.0,0.00024999,2]
[389690911,1759797041593,-500.0,0.00024999,2]
[389690913,1759797041602,-500.0,0.00024999,2]
[389690915,1759797041611,-500.0,0.00024999,2]
[389690917,1759797041621,-500.0,0.00024999,2]
[389690919,1759797041629,-500.0,0.00024999,2]
[389690921,1759797041638,-500.0,0.00024999,2]
[389690923,1759797041647,-400.0,0.00024999,2]
[389690925,1759797041657,-500.0,0.00024999,2]
[389690927,1759797041666,-500.0,0.00024999,2]
[389690929,1759797041675,-500.0,0.00024999,2]
[389690931,1759797041684,-500.0,0.00024999,2]
[389690933,1759797041694,-500.0,0.00024999,2]
[389690935,1759797041703,-500.0,0.00024999,2]
[389690937,1759797041712,-500.0,0.00024999,2]
[389690939,1759797041721,-500.0,0.00024999,2]
[389690941,1759797041731,-500.0,0.00024999,2]
[389690943,1759797041741,-173.26664014,0.00024999,2]
[389690945,1759797041750,-362.76716269,0.00024999,2]